bitfinex/quotes_SOLUSD_20250601
["timestamp","ask_amount","ask_price","bid_price","bid_amount"]
[1748805101803,19.96041495,154.69,154.64,19.96041495]
[1748805102986,19.96041495,154.69,154.65,6.46621403]
[1748805104694,19.96041495,154.69,154.65,26.42662898]
[1748805105096,19.96041495,154.69,154.65,42.59216405]
[1748805105300,19.96041495,154.73,154.68,19.96041495]
[1748805105998,19.96041495,154.72,154.67,19.96041495]
[1748805106299,19.96041495,154.71,154.67,19.96041495]
[1748805106493,19.96041495,154.71,154.68,6.46495991]
[1748805108328,19.96041495,154.72,154.68,6.46495991]
[1748805112013,19.96041495,154.71,154.68,6.46495991]
[1748805112321,19.96041495,154.72,154.68,6.46495991]
[1748805115451,19.96041495,154.7,154.68,6.46495991]
[1748805115606,19.96041495,154.7,154.66,19.96041495]
[1748805115807,19.96041495,154.71,154.67,19.96041495]
[1748805116024,19.96041495,154.72,154.67,19.96041495]
[1748805116403,19.96041495,154.74,154.69,19.96041495]
[1748805117118,19.96041495,154.74,154.7,6.46412411]
[1748805117712,19.96041495,154.74,154.7,26.42453906]
[1748805118932,19.96041495,154.77,154.72,19.96041495]
[1748805119105,19.96041495,154.77,154.72,26.42331162]
[1748805120512,19.96041495,154.77,154.69,41.2755458]
[1748805120839,19.96041495,154.76,154.72,19.96041495]
[1748805121025,19.96041495,154.76,154.71,19.96041495]
[1748805121926,19.96041495,154.76,154.72,6.46328852]
[1748805123311,6.46084234,154.78,154.72,6.46328852]
[1748805123542,19.96041495,154.76,154.72,6.46328852]
[1748805126446,7.8523966,154.79,154.72,26.42370347]
[1748805126747,27.81281155,154.79,154.75,19.96041495]
[1748805127043,27.81281155,154.79,154.72,16.1582213]
[1748805127044,19.96041495,154.77,154.72,19.96041495]
[1748805128034,19.96041495,154.77,154.73,6.4628708]
[1748805129449,19.96041495,154.77,154.73,26.42328575]
[1748805129656,19.96041495,154.78,154.73,26.42328575]
[1748805130339,27.81281155,154.79,154.74,19.96041495]
[1748805132551,27.81281155,154.79,154.75,6.46203554]
[1748805133964,7.8523966,154.79,154.75,26.42245049]
[1748805134143,19.96041495,154.8,154.75,26.42245049]
[1748805136646,19.96041495,154.8,154.77,6.46120049]
[1748805138953,19.96041495,154.81,154.77,26.42161544]
[1748805142445,19.96041495,154.81,154.77,6.46120049]
[1748805144076,19.96041495,154.81,154.77,26.42161544]
[1748805144757,19.96041495,154.81,154.77,6.46120049]
[1748805144959,19.96041495,154.81,154.77,26.42161544]
[1748805147357,19.96041495,154.81,154.77,6.46120049]
[1748805150683,6.45958582,154.81,154.75,6.46203554]
[1748805150850,19.96041495,154.78,154.75,6.46203554]
[1748805151349,19.96041495,154.79,154.75,6.46203554]
[1748805152082,19.96041495,154.78,154.74,37.80274393]
[1748805152298,19.96041495,154.78,154.74,11.38]
[1748805152582,19.96041495,154.75,154.74,11.38]
[1748805155373,19.96041495,154.76,154.74,11.38]
[1748805155583,19.96041495,154.77,154.74,17.8423974]
[1748805155766,19.96041495,154.76,154.74,11.38]
[1748805157569,19.96041495,154.76,154.74,17.84237109]
[1748805158653,6.4599484,154.8,154.74,17.84237109]
[1748805158880,19.96041495,154.78,154.74,17.84237109]
[1748805160294,19.96041495,154.79,154.74,37.80278604]
[1748805161165,19.96041495,154.78,154.74,17.84237109]
[1748805164175,18.96041495,154.78,154.74,17.84237109]
[1748805164396,18.96041495,154.78,154.74,37.80278604]
[1748805165896,19.96041495,154.79,154.74,37.80278604]
[1748805167808,19.96041495,154.79,154.75,19.96041495]
[1748805167983,19.96041495,154.79,154.74,37.80278604]
[1748805168189,19.96041495,154.78,154.74,37.80278604]
[1748805171398,19.96041495,154.79,154.74,37.80278604]
[1748805173304,6.45923535,154.82,154.74,37.80278604]
[1748805173481,19.96041495,154.79,154.74,37.80278604]
[1748805173880,157.09526172,154.83,154.77,19.96041495]
[1748805174080,19.96041495,154.82,154.77,19.96041495]
[1748805174493,19.96041495,154.81,154.77,19.96041495]
[1748805174693,157.09526172,154.83,154.74,33.99850395]
[1748805174694,19.96041495,154.78,154.74,17.84237109]
[1748805176899,19.96041495,154.77,154.74,11.38]
[1748805177105,19.96041495,154.76,154.74,11.38]
[1748805179110,19.96041495,154.76,154.74,17.84241668]
[1748805179809,19.96041495,154.77,154.74,17.84241668]
[1748805180518,26.0,154.82,154.74,53.95896449]
[1748805180716,26.0,154.82,154.75,19.96041495]
[1748805181011,19.96041495,154.8,154.76,19.96041495]
[1748805181207,198.41526172,154.83,154.74,33.99854954]
[1748805181208,157.09526172,154.83,154.78,19.96041495]
[1748805181410,28.15567667,154.83,154.79,19.96041495]
[1748805181788,39.2299382,154.84,154.8,19.96041495]
[1748805181988,39.2299382,154.84,154.82,19.96041495]
[1748805182189,19.96041495,154.83,154.8,11.28]
[1748805182493,59.19035315,154.84,154.8,37.70010062]
[1748805182913,59.19035315,154.84,154.8,53.84997142]
[1748805183098,39.2299382,154.84,154.81,19.96041495]
[1748805184521,39.2299382,154.84,154.82,6.4591138]
[1748805185613,39.2299382,154.84,154.82,26.41952875]
[1748805187318,39.2299382,154.84,154.83,19.96041495]
[1748805188107,39.2299382,154.84,154.82,26.41952875]
[1748805189921,39.2299382,154.84,154.83,19.96041495]
[1748805191298,19.96041495,154.87,154.83,26.41911158]
[1748805192199,19.96041495,154.88,154.83,26.41911158]
[1748805192807,19.96041495,154.89,154.85,19.96041495]
[1748805193318,19.96041495,154.87,154.83,26.41911158]
[1748805193826,19.96041495,154.88,154.83,26.41911158]
[1748805195827,19.96041495,154.86,154.83,6.45869663]
[1748805198308,19.96041495,154.87,154.83,26.41911158]
[1748805200404,19.96041495,154.87,154.83,6.45869663]
[1748805203212,19.96041495,154.87,154.83,26.41911158]
[1748805208728,41.26,154.9,154.8,11.28]
[1748805208937,41.26,154.9,154.76,6.46161798]
[1748805208938,7.9912,154.86,154.76,6.46161798]
[1748805209124,41.22,154.85,154.76,6.46161798]
[1748805209315,41.22,154.85,154.77,19.96041495]
[1748805209637,19.96041495,154.83,154.78,19.96041495]
[1748805210550,19.96041495,154.83,154.79,19.96041495]
[1748805211412,19.96041495,154.83,154.8,6.45994832]
[1748805213449,19.96041495,154.83,154.79,6.46036565]
[1748805214251,19.96041495,154.82,154.79,6.46036565]
[1748805218031,19.96041495,154.8,154.75,157.74041495]
[1748805218265,19.96041495,154.8,154.75,138.94041495]
[1748805218445,19.96041495,154.8,154.76,19.96041495]
[1748805218770,19.96041495,154.8,154.76,6.46161798]
[1748805218939,6.45876647,154.83,154.75,92.98]
[1748805219148,6.45876647,154.83,154.74,11.28]
[1748805219149,19.96041495,154.76,154.74,11.28]
[1748805219527,19.96041495,154.76,154.74,17.74241312]
[1748805220636,19.96041495,154.75,154.74,11.28]
[1748805221342,19.96041495,154.75,154.69,12.795]
[1748805221557,19.96041495,154.73,154.69,17.704151]
[1748805224557,19.96041495,154.74,154.69,37.66456595]
[1748805224755,21.48761495,154.8,154.72,19.96041495]
[1748805224756,19.96041495,154.76,154.72,19.96041495]
[1748805225568,19.96041495,154.76,154.71,19.96041495]
[1748805226162,19.96041495,154.74,154.72,6.46328852]
[1748805227147,19.96041495,154.74,154.71,6.46370628]
[1748805227654,19.96041495,154.73,154.71,6.46370628]
[1748805228064,19.96041495,154.74,154.71,6.46370628]
[1748805228374,19.96041495,154.75,154.71,6.46370628]
[1748805229358,1.5272,154.8,154.73,19.96041495]
[1748805229567,19.96041495,154.78,154.73,19.96041495]
[1748805229764,19.96041495,154.8,154.75,19.96041495]
[1748805230160,19.96041495,154.79,154.75,19.96041495]
[1748805231165,19.96041495,154.79,154.76,6.46161798]
[1748805231675,19.96041495,154.81,154.76,42.5760779]
[1748805232059,19.96041495,154.8,154.76,42.5760779]
[1748805233083,19.96041495,154.81,154.76,42.5760779]
[1748805235269,7.98459712,154.84,154.78,19.96041495]
[1748805235482,19.96041495,154.82,154.78,19.96041495]
[1748805236390,19.96041495,154.82,154.77,19.96041495]
[1748805236588,19.96041495,154.82,154.78,6.46078304]
[1748805241471,19.96041495,154.81,154.78,6.46078304]
[1748805241962,19.96041495,154.82,154.78,6.46078304]
[1748805246199,19.96041495,154.83,154.78,26.42119799]
[1748805246363,19.96041495,154.83,154.79,19.96041495]
[1748805248907,155.2751,154.86,154.8,26.42036327]
[1748805249065,168.86041495,154.86,154.81,19.96041495]
[1748805249602,148.9,154.86,154.81,19.96041495]
[1748805249890,168.86041495,154.86,154.81,19.96041495]
[1748805251404,19.96041495,154.85,154.8,19.96041495]
[1748805254973,19.96041495,154.84,154.8,19.96041495]
[1748805258178,19.96041495,154.84,154.79,37.62059593]
[1748805260197,26.41857181,154.85,154.8,19.96041495]
[1748805260517,26.41857181,154.85,154.8,26.42034658]
[1748805260810,6.45756307,154.86,154.81,19.96041495]
[1748805261113,19.96041495,154.85,154.8,26.42034658]
[1748805262309,19.96041495,154.84,154.8,26.42034658]
[1748805262515,6.4578646,154.85,154.8,26.42034658]
[1748805262679,19.96041495,154.84,154.8,26.42034658]
[1748805263107,26.41827955,154.85,154.8,26.42034658]
[1748805263989,19.96041495,154.85,154.8,26.42034658]
[1748805264390,26.41841007,154.85,154.8,26.42034658]
[1748805264795,26.41841007,154.85,154.8,19.96041495]
[1748805265183,6.45799512,154.85,154.8,19.96041495]
[1748805265384,19.96041495,154.84,154.8,19.96041495]
[1748805268414,26.41871922,154.84,154.79,17.66021403]
[1748805268594,26.41871922,154.84,154.8,19.96041495]
[1748805271210,19.96041495,154.84,154.8,19.96041495]
[1748805272596,26.41881711,154.84,154.8,19.96041495]
[1748805272990,6.45840216,154.84,154.8,19.96041495]
[1748805277431,12.81216233,154.85,154.8,12.81216233]
[1748805278315,19.27041558,154.85,154.8,12.81216233]
[1748805278504,12.81216233,154.84,154.8,12.81216233]
[1748805280229,19.27047793,154.84,154.8,12.81216233]
[1748805280430,12.81216233,154.83,154.79,24.01216233]
[1748805281811,19.27047793,154.84,154.79,24.01216233]
[1748805287135,19.27047793,154.84,154.8,12.81216233]
[1748805288525,19.27047793,154.84,154.79,30.47243636]
[1748805291836,12.81216233,154.8,154.79,11.2]
[1748805292241,12.81216233,154.8,154.75,12.81216233]
[1748805292538,12.81216233,154.79,154.75,12.81216233]
[1748805293319,12.81216233,154.79,154.74,56.43454968]
[1748805295688,19.27266721,154.79,154.74,56.43454968]
[1748805296728,12.81216233,154.79,154.74,56.43454968]
[1748805298740,12.81216233,154.79,154.75,12.81216233]
[1748805299442,12.81216233,154.79,154.75,19.27412058]
[1748805302637,12.81216233,154.79,154.75,12.81216233]
[1748805302832,12.81216233,154.77,154.74,11.16]
[1748805303034,12.81216233,154.75,154.74,11.16]
[1748805303354,12.81216233,154.75,154.69,31.43524886]
[1748805303556,12.81216233,154.73,154.69,11.18]
[1748805303726,12.81216233,154.72,154.69,11.18]
[1748805304527,12.81216233,154.72,154.69,17.64448725]
[1748805304730,12.81216233,154.73,154.69,17.64448725]
[1748805305253,20.04996424,154.73,154.69,17.64448725]
[1748805305830,7.9658821,154.78,154.7,20.04996424]
[1748805306047,20.04996424,154.76,154.72,20.04996424]
[1748805306548,20.04996424,154.8,154.75,20.04996424]
[1748805306736,20.04996424,154.8,154.76,20.04996424]
[1748805306928,20.04996424,154.81,154.76,20.04996424]
[1748805307333,20.04996424,154.8,154.76,20.04996424]
[1748805308058,20.04996424,154.8,154.76,26.51139967]
[1748805308655,20.04996424,154.78,154.75,17.60189786]
[1748805310343,20.04996424,154.77,154.75,11.14]
[1748805310553,20.04996424,154.76,154.71,6.46356845]
[1748805310731,20.04996424,154.8,154.71,6.46356845]
[1748805310732,20.04996424,154.75,154.71,6.46356845]
[1748805310940,20.04996424,154.74,154.71,6.46356845]
[1748805311343,20.04996424,154.73,154.7,11.14]
[1748805311530,41.04,154.79,154.7,11.14]
[1748805311531,20.04996424,154.72,154.7,11.14]
[1748805313343,20.04996424,154.71,154.7,11.14]
[1748805314851,20.04996424,154.72,154.7,11.14]
[1748805316662,20.04996424,154.72,154.7,17.60410599]
[1748805316864,6.46209773,154.75,154.7,37.65407023]
[1748805316865,20.04996424,154.75,154.7,37.65407023]
[1748805317367,20.04996424,154.73,154.7,17.60410599]
[1748805320958,20.04996424,154.74,154.7,37.65407023]
[1748805321365,188.00139107,154.78,154.7,37.65407023]
[1748805321673,20.04996424,154.74,154.7,37.65407023]
[1748805322766,20.04996424,154.74,154.7,17.60410599]
[1748805323345,20.04996424,154.73,154.7,17.60410599]
[1748805324469,20.04996424,154.74,154.7,17.60410599]
[1748805328362,20.04996424,154.74,154.7,37.65407023]
[1748805328957,187.31111676,154.78,154.72,20.04996424]
[1748805329157,207.361081,154.78,154.74,20.04996424]
[1748805329366,38.41111676,154.78,154.74,20.04996424]
[1748805329581,38.41111676,154.78,154.76,20.04996424]
[1748805329759,38.41111676,154.78,154.75,20.04996424]
[1748805330763,38.41111676,154.78,154.76,6.46161798]
[1748805332181,20.04996424,154.77,154.73,6.4628708]
[1748805332371,20.04996424,154.76,154.73,6.4628708]
[1748805333212,20.04996424,154.77,154.73,6.4628708]
[1748805334080,58.461081,154.78,154.74,20.04996424]
[1748805335995,58.461081,154.78,154.75,6.46203554]
[1748805338404,58.461081,154.78,154.73,26.51283504]
[1748805338579,20.04996424,154.77,154.73,26.51283504]
[1748805342089,58.461081,154.78,154.74,20.04996424]
[1748805343197,58.461081,154.78,154.75,6.46203554]
[1748805344295,38.41111676,154.78,154.75,6.46203554]
[1748805344494,38.41111676,154.78,154.76,20.04996424]
[1748805345872,38.41111676,154.78,154.77,6.46120049]
[1748805361624,38.41111676,154.78,154.77,26.51116473]
[1748805361926,32.45799493,154.85,154.77,26.51116473]
[1748805361927,148.9,154.86,154.78,18.64964886]
[1748805362114,60.96996424,154.87,154.82,20.04996424]
[1748805364042,60.96996424,154.87,154.82,26.50894576]
[1748805364727,20.04996424,154.87,154.82,26.50894576]
[1748805365643,6.45721027,154.87,154.8,20.04996424]
[1748805365931,20.04996424,154.84,154.8,20.04996424]
[1748805366308,20.04996424,154.85,154.8,20.04996424]
[1748805366507,6.45721027,154.87,154.81,20.04996424]
[1748805366702,20.04996424,154.86,154.81,20.04996424]
[1748805366922,20.04996424,154.86,154.82,20.04996424]
[1748805368113,20.04996424,154.86,154.82,26.50876288]
[1748805369230,20.04996424,154.86,154.82,6.45879864]
[1748805369527,20.04996424,154.85,154.82,6.45879864]
[1748805370131,20.04996424,154.85,154.81,26.50934179]
[1748805375117,20.04996424,154.85,154.81,6.45937755]
[1748805378129,20.04996424,154.85,154.81,26.50934179]
[1748805380146,20.04996424,154.86,154.81,26.50934179]
[1748805384126,26.50744374,154.86,154.81,6.45937755]
[1748805384320,20.04996424,154.85,154.81,26.50934179]
[1748805385116,20.04996424,154.85,154.81,20.04996424]
[1748805385313,20.04996424,154.85,154.8,37.54987244]
[1748805386052,6.4574795,154.86,154.76,78.36964886]
[1748805386053,20.04996424,154.81,154.76,49.88996424]
[1748805386220,20.04996424,154.8,154.77,6.46094274]
[1748805388950,20.04996424,154.8,154.76,43.50148997]
[1748805389546,6.45924735,154.82,154.76,63.55145421]
[1748805389738,20.04996424,154.8,154.76,63.55145421]
[1748805391447,20.04996424,154.82,154.77,20.04996424]
[1748805391647,20.04996424,154.82,154.78,20.04996424]
[1748805392943,20.04996424,154.82,154.78,26.51042376]
[1748805394140,20.04996424,154.85,154.81,20.04996424]
[1748805394460,168.94996424,154.86,154.81,20.04996424]
[1748805395047,148.9,154.86,154.83,20.04996424]
[1748805395254,7.97179123,154.88,154.81,26.0]
[1748805395255,20.04996424,154.88,154.84,20.04996424]
[1748805395556,77.2563628,154.89,154.84,20.04996424]
[1748805395772,16.38639856,154.89,154.85,20.04996424]
[1748805395964,16.38639856,154.89,154.86,20.04996424]
[1748805397140,16.38639856,154.89,154.85,20.04996424]
[1748805397341,16.38639856,154.89,154.86,20.04996424]
[1748805398139,28.23313066,154.9,154.86,20.04996424]
[1748805398946,28.23313066,154.9,154.86,6.45744543]
[1748805401254,20.04996424,154.89,154.86,6.45744543]
[1748805402933,20.04996424,154.89,154.85,26.50772671]
[1748805403137,20.04996424,154.88,154.85,6.45776247]
[1748805404059,20.04996424,154.86,154.82,31.04996424]
[1748805404264,20.04996424,154.87,154.82,31.04996424]
[1748805404444,20.04996424,154.87,154.83,26.50855899]
[1748805404834,20.04996424,154.88,154.83,26.50855899]
[1748805405735,20.04996424,154.87,154.83,26.50855899]
[1748805405952,20.04996424,154.86,154.82,37.50894904]
[1748805406156,20.04996424,154.84,154.82,11.0]
[1748805406446,67.30660854,154.88,154.78,17.65297048]
[1748805406447,20.04996424,154.83,154.78,11.0]
[1748805406655,20.04996424,154.82,154.78,37.0]
[1748805406842,20.04996424,154.8,154.78,11.0]
[1748805407470,20.04996424,154.81,154.78,17.46052057]
[1748805408970,40.78,154.84,154.78,17.46052057]
[1748805409292,20.04996424,154.83,154.78,37.51048481]
[1748805410153,20.04996424,154.83,154.79,20.04996424]
[1748805410958,20.04996424,154.83,154.78,37.51048481]
[1748805411256,20.04996424,154.81,154.78,17.46052057]
[1748805416576,20.04996424,154.79,154.78,11.0]
[1748805417977,20.04996424,154.79,154.76,6.46131929]
[1748805418274,20.04996424,154.77,154.76,6.46131929]
[1748805419549,20.04996424,154.78,154.75,6.46203554]
[1748805420500,47.23883617,154.83,154.75,26.51199978]
[1748805420772,20.04996424,154.79,154.75,6.46203554]
[1748805424382,20.04996424,154.78,154.75,6.46203554]
[1748805424687,20.04996424,154.79,154.75,6.46203554]
[1748805425392,20.04996424,154.8,154.75,26.51199978]
[1748805427485,20.04996424,154.79,154.75,6.46203554]
[1748805428884,20.04996424,154.78,154.75,6.46203554]
[1748805431083,20.04996424,154.79,154.75,6.46203554]
[1748805432372,20.04996424,154.78,154.75,6.46203554]
[1748805433770,20.04996424,154.79,154.75,6.46203554]
[1748805435592,20.04996424,154.78,154.75,6.46203554]
[1748805436090,6.46002414,154.8,154.74,17.4623125]
[1748805436091,20.04996424,154.76,154.74,17.4623125]
[1748805436678,20.04996424,154.75,154.74,11.0]
[1748805436878,20.04996424,154.75,154.72,6.46302278]
[1748805438339,20.04996424,154.75,154.71,6.46370628]
[1748805439600,40.74,154.79,154.74,20.04996424]
[1748805439781,20.04996424,154.79,154.74,20.04996424]
[1748805440888,20.04996424,154.79,154.75,20.04996424]
[1748805441401,20.04996424,154.79,154.74,20.04996424]
[1748805441605,20.04996424,154.79,154.75,6.46203554]
[1748805441910,20.04996424,154.78,154.75,6.46203554]
[1748805445387,20.04996424,154.79,154.75,6.46203554]
[1748805446296,20.04996424,154.78,154.75,6.46203554]
[1748805448906,20.04996424,154.79,154.75,6.46203554]
[1748805451326,20.04996424,154.8,154.76,20.04996424]
[1748805452693,20.04996424,154.8,154.75,42.66708863]
[1748805453109,20.04996424,154.79,154.75,42.66708863]
[1748805454314,20.04996424,154.78,154.75,6.46203554]
[1748805455588,38.95551298,154.82,154.76,20.04996424]
[1748805455922,20.04996424,154.81,154.76,20.04996424]
[1748805456405,20.04996424,154.81,154.77,6.46120049]
[1748805457518,20.04996424,154.8,154.77,6.46120049]
[1748805461304,38.95551298,154.82,154.78,20.04996424]
[1748805461505,38.95551298,154.82,154.81,20.04996424]
[1748805462034,187.69305152,154.89,154.81,20.04996424]
[1748805462035,9.73576642,154.9,154.81,38.6996131]
[1748805462319,59.61443452,154.89,154.84,20.04996424]
[1748805462510,39.56447028,154.89,154.86,20.04996424]
[1748805463026,39.56447028,154.89,154.87,6.45702847]
[1748805464228,39.56447028,154.89,154.86,26.50731098]
[1748805465507,20.04996424,154.9,154.86,26.50731098]
[1748805467421,20.04996424,154.91,154.86,26.50731098]
[1748805467622,20.04996424,154.92,154.87,20.04996424]
[1748805469608,20.04996424,154.91,154.87,20.04996424]
[1748805471041,20.04996424,154.9,154.86,20.04996424]
[1748805471225,19.54996424,154.9,154.86,20.04996424]
[1748805471840,20.04996424,154.89,154.85,30.96996424]
[1748805473024,26.50592198,154.9,154.85,30.96996424]
[1748805477535,20.04996424,154.88,154.83,20.04996424]
[1748805477743,20.04996424,154.88,154.83,30.94996424]
[1748805478451,20.04996424,154.87,154.83,30.94996424]
[1748805479765,20.04996424,154.87,154.83,37.40861404]
[1748805481454,20.04996424,154.88,154.83,37.40861404]
[1748805481642,20.04996424,154.91,154.87,20.04996424]
[1748805483043,20.04996424,154.92,154.88,20.04996424]
[1748805484423,20.04996424,154.92,154.88,26.50656201]
[1748805484940,26.50495834,154.92,154.87,26.50687894]
[1748805485141,20.04996424,154.91,154.87,26.50687894]
[1748805486250,38.80145537,154.93,154.88,26.5061601]
[1748805486427,20.04996424,154.92,154.88,26.5061601]
[1748805488365,20.04996424,154.92,154.88,20.04996424]
[1748805489029,20.04996424,154.92,154.88,26.50652837]
[1748805489248,20.04996424,154.92,154.88,6.45656413]
[1748805495134,20.04996424,154.92,154.88,26.50652837]
[1748805495334,38.80145537,154.93,154.88,26.50652837]
[1748805495534,20.04996424,154.92,154.88,26.50652837]
[1748805498949,38.80145537,154.93,154.91,20.04996424]
[1748805499445,38.80145537,154.93,154.9,20.04996424]
[1748805500053,38.80145537,154.93,154.91,6.45536117]
[1748805501246,38.80145537,154.93,154.91,20.04996424]
[1748805501452,38.80145537,154.93,154.92,20.04996424]
[1748805503375,38.80145537,154.93,154.92,26.50490872]
[1748805507705,58.85141961,154.93,154.89,18.64964886]
[1748805507860,20.04996424,154.91,154.86,37.36740967]
[1748805508184,20.04996424,154.92,154.87,20.04996424]
[1748805508893,20.04996424,154.91,154.87,20.04996424]
[1748805509495,20.04996424,154.91,154.87,26.50679774]
[1748805513181,20.04996424,154.91,154.87,6.4568335]
[1748805514787,20.04996424,154.9,154.86,63.36729197]
[1748805515081,20.04996424,154.9,154.86,43.31732773]
[1748805515468,20.04996424,154.9,154.86,63.36729197]
[1748805515892,20.04996424,154.91,154.86,63.36729197]
[1748805516596,20.04996424,154.91,154.87,20.04996424]
[1748805517973,20.04996424,154.92,154.88,6.45661157]
[1748805525765,20.04996424,154.91,154.88,6.45661157]
[1748805529769,20.04996424,154.92,154.88,6.45661157]
[1748805529972,38.80145537,154.93,154.91,20.04996424]
[1748805530171,38.80145537,154.93,154.92,30.86996424]
[1748805531289,7.98030091,155.02,154.93,18.64964886]
[1748805531500,20.04996424,155.0,154.95,20.04996424]
[1748805531671,20.04996424,154.99,154.95,20.04996424]
[1748805531877,20.04996424,154.99,154.96,6.45327826]
[1748805533205,20.04996424,154.99,154.95,6.45369474]
[1748805533993,20.04996424,154.98,154.94,40.48]
[1748805534292,44.93319562,155.01,154.92,10.82]
[1748805534293,20.04996424,154.95,154.92,10.82]
[1748805534503,20.04996424,154.93,154.92,10.82]
[1748805537389,20.04996424,154.94,154.92,10.82]
[1748805540928,20.04996424,154.93,154.92,10.82]
[1748805541223,20.04996424,154.93,154.89,6.45593472]
[1748805541392,20.04996424,154.92,154.89,6.45593472]
[1748805542232,20.04996424,154.93,154.89,6.45593472]
[1748805542524,1.5722,154.97,154.91,20.04996424]
[1748805542525,20.04996424,154.95,154.91,20.04996424]
[1748805542827,20.04996424,154.97,154.92,20.04996424]
[1748805543027,20.04996424,154.97,154.89,41.24607037]
[1748805543028,6.4257,154.99,154.93,20.04996424]
[1748805543197,20.04996424,154.97,154.93,20.04996424]
[1748805543919,20.04996424,154.97,154.94,6.45411126]
[1748805545135,20.04996424,154.96,154.94,6.45411126]
[1748805548109,20.04996424,154.97,154.94,6.45411126]
[1748805548509,20.04996424,154.98,154.94,6.45411126]
[1748805549223,40.06788304,155.01,154.95,20.04996424]
[1748805549420,20.04996424,155.0,154.96,20.04996424]
[1748805551237,20.04996424,155.0,154.96,26.50286352]
[1748805551418,20.04996424,155.0,154.96,6.45289928]
[1748805555016,20.04996424,155.0,154.96,20.04996424]
[1748805556237,20.04996424,155.0,154.97,6.45286184]
[1748805558114,40.06788304,155.01,154.93,10.82]
[1748805558115,20.04996424,154.98,154.93,10.82]
[1748805558320,20.04996424,154.95,154.93,10.82]
[1748805561129,6.4530219,154.97,154.93,10.82]
[1748805561333,20.04996424,154.95,154.93,10.82]
[1748805561822,66.42,155.0,154.94,20.04996424]
[1748805562032,20.04996424,154.98,154.94,20.04996424]
[1748805562241,20.04996424,155.0,154.95,20.04996424]
[1748805563241,20.04996424,155.0,154.96,6.45327826]
[1748805565117,20.04996424,154.99,154.96,6.45327826]
[1748805565639,58.53194728,155.01,154.96,26.5032425]
[1748805565822,38.48198304,155.01,154.98,20.04996424]
[1748805567314,38.48198304,155.01,154.98,26.50203339]
[1748805568018,58.53194728,155.01,154.98,6.45206915]
[1748805569436,20.04996424,155.03,154.99,20.04996424]
[1748805569939,20.04996424,155.03,154.98,20.04996424]
[1748805570536,20.04996424,155.03,154.99,6.45202916]
[1748805570742,20.04996424,155.03,154.98,20.04996424]
[1748805570743,20.04996424,155.0,154.96,6.45304204]
[1748805571041,20.04996424,154.99,154.96,6.45304204]
[1748805573251,20.04996424,154.97,154.93,10.82]
[1748805573478,20.04996424,154.96,154.93,10.82]
[1748805574120,20.04996424,154.96,154.93,17.27439866]
[1748805574825,20.04996424,154.97,154.93,37.3243629]
[1748805575737,20.04996424,154.97,154.93,17.27439866]
[1748805577120,20.04996424,154.96,154.93,17.27439866]
[1748805578659,20.04996424,154.97,154.93,37.3243629]
[1748805579176,20.04996424,154.98,154.94,20.04996424]
[1748805579483,38.65973063,155.03,154.96,20.04996424]
[1748805579765,20.04996424,155.01,154.97,20.04996424]
[1748805580339,20.04996424,155.01,154.98,6.45244547]
[1748805587041,20.04996424,155.01,154.98,17.19244547]
[1748805587852,20.04996424,155.02,154.98,17.19244547]
[1748805589872,20.04996424,155.02,154.98,37.24240971]
[1748805598580,38.65973063,155.03,154.98,37.24240971]
[1748805598864,58.70969487,155.03,154.98,37.24240971]
[1748805599570,20.04996424,155.02,154.98,17.19244547]
[1748805602182,20.04996424,155.02,154.98,37.24240971]
[1748805611288,12.78170067,155.02,154.98,29.97414614]
[1748805617494,38.65973063,155.03,154.98,29.97414614]
[1748805617681,12.78170067,155.02,154.98,29.97414614]
[1748805618469,12.78170067,154.99,154.98,10.74]
[1748805618667,12.78170067,154.99,154.94,10.7]
[1748805618919,12.78170067,154.96,154.94,10.7]
[1748805619077,12.78170067,154.95,154.94,10.7]
[1748805620389,12.78170067,154.95,154.94,17.15411126]
[1748805620696,6.45206166,154.99,154.94,17.15411126]
[1748805620697,12.78170067,154.96,154.94,17.15411126]
[1748805621273,19.98804414,154.96,154.94,10.7]
[1748805621598,19.98804414,154.95,154.94,10.7]
[1748805623873,19.98804414,154.96,154.94,17.15410184]
[1748805624074,19.98804414,154.97,154.94,17.15410184]
[1748805624393,19.98804414,154.96,154.92,6.45494448]
[1748805624900,19.98804414,154.95,154.92,6.45494448]
[1748805626035,6.45291981,154.97,154.91,32.45520904]
[1748805626036,19.98804414,154.94,154.91,32.45520904]
[1748805632216,19.98804414,154.92,154.9,10.7]
[1748805632379,19.98804414,154.91,154.9,10.7]
[1748805632795,19.98804414,154.91,154.86,17.15744543]
[1748805633007,19.98804414,154.9,154.86,17.15744543]
[1748805633877,1.5186,154.95,154.87,18.64964886]
[1748805634191,19.98804414,154.93,154.89,19.98804414]
[1748805635895,1.5186,154.95,154.86,33.30105901]
[1748805635896,19.98804414,154.9,154.86,17.15744543]
[1748805636795,19.98804414,154.89,154.86,17.15744543]
[1748805639399,19.98804414,154.9,154.86,17.15744543]
[1748805640908,19.98804414,154.9,154.86,37.14548957]
[1748805643316,19.98804414,154.9,154.86,29.95958824]